bitfinex/quotes_ETHUSD_20250622
["timestamp","ask_amount","ask_price","bid_price","bid_amount"]
[1750585917504,9.486,2259.5,2259.4,5.31116034]
[1750585918411,9.486,2259.5,2259.4,4.42595379]
[1750585920076,10.0,2259.8,2259.7,4.42536619]
[1750585920584,19.732,2259.8,2259.7,4.42536619]
[1750585920772,19.732,2259.8,2259.2,0.8196]
[1750585921106,11.38804,2259.6,2259.5,4.42575791]
[1750585921274,19.79954,2259.6,2259.5,4.42575791]
[1750585922216,19.00704,2259.6,2259.5,4.42575791]
[1750585922424,7.619,2259.6,2259.5,5.31092573]
[1750585923686,10.0,2259.8,2259.7,5.24496619]
[1750585923888,0.7925,2260.3,2260.1,4.42458298]
[1750585923889,11.38804,2260.2,2260.1,4.42458298]
[1750585924089,21.11704,2260.2,2260.1,4.42458298]
[1750585924303,31.11704,2260.2,2260.1,4.42458298]
[1750585924622,21.11704,2260.2,2260.1,4.42458298]
[1750585925121,21.11704,2260.2,2259.5,5.31092573]
[1750585925122,10.0,2260.1,2259.5,1.68176782]
[1750585925322,11.38804,2259.9,2259.8,4.42517036]
[1750585927930,10.0,2260.1,2259.9,4.42481858]
[1750585928235,10.0,2260.1,2260.0,4.42477876]
[1750585928438,17.614,2260.1,2260.0,4.42477876]
[1750585928589,2.1,2260.2,2260.0,5.38939849]
[1750585928791,2.1,2260.2,2260.1,4.42458298]
[1750585929440,12.737,2260.4,2260.3,5.23599147]
[1750585929591,10.637,2260.4,2260.3,5.78599147]
[1750585929812,7.614,2260.4,2260.3,5.23599147]
[1750585930009,7.614,2260.4,2260.3,6.45738975]
[1750585931349,7.614,2260.4,2260.3,5.23599147]
[1750585933497,2.1,2260.9,2260.8,4.42321302]
[1750585933705,9.711,2260.9,2260.3,0.8118]
[1750585933864,12.15514,2260.8,2260.1,5.23619801]
[1750585934064,7.61,2260.7,2260.6,4.42359345]
[1750585934496,7.61,2260.7,2260.5,4.42372231]
[1750585934796,7.61,2260.7,2260.6,4.42360435]
[1750585939007,7.61,2260.7,2260.1,0.8118]
[1750585939205,11.38804,2260.3,2259.6,0.8247]
[1750585939362,10.4974,2260.2,2260.0,4.42467567]
[1750585939709,18.99404,2260.1,2259.9,4.42488095]
[1750585939864,18.99404,2260.1,2260.0,4.42477876]
[1750585940563,18.99404,2260.1,2259.9,4.42487437]
[1750585940901,18.99404,2260.1,2260.0,4.42477876]
[1750585941315,4.42548583,2259.7,2259.1,4.4264871]
[1750585941624,10.0,2259.1,2258.2,0.8306]
[1750585941780,11.38804,2258.8,2258.7,4.42714003]
[1750585941975,9.704,2258.8,2258.7,0.8306]
[1750585942176,9.704,2258.8,2258.7,5.25792545]
[1750585942803,0.7914,2259.2,2259.0,4.42657845]
[1750585943001,9.706,2259.1,2259.0,4.42657845]
[1750585943520,9.706,2259.1,2259.0,5.75906132]
[1750585943686,9.706,2259.1,2259.0,4.42657845]
[1750585944091,2.1,2259.3,2259.2,5.2569456]
[1750585944291,9.705,2259.3,2259.2,4.4263456]
[1750585944919,0.7914,2259.6,2259.0,4.42673749]
[1750585945116,0.7914,2259.6,2258.9,0.801]
[1750585945117,9.704,2259.5,2259.3,4.42596957]
[1750585945328,12.600404,2259.5,2259.2,4.42631699]
[1750585945630,11.38804,2259.3,2259.1,4.42645605]
[1750585945796,11.38804,2259.3,2259.2,4.4263456]
[1750585945997,18.99204,2259.3,2259.2,4.4263456]
[1750585946705,7.604,2259.3,2259.2,4.4263456]
[1750585947105,2.1,2259.7,2259.6,4.42556204]
[1750585947277,9.704,2259.7,2259.6,4.42556204]
[1750585947681,0.7927,2259.6,2259.3,4.42596034]
[1750585947881,7.603,2259.5,2259.3,4.42596034]
[1750585948132,7.603,2259.5,2259.4,4.42595379]
[1750585949376,7.603,2259.5,2259.2,4.42626187]
[1750585949583,10.7691,2259.2,2258.7,4.42722796]
[1750585949893,11.38804,2259.0,2258.8,4.42712944]
[1750585950090,11.38804,2259.0,2258.9,4.42693346]
[1750585950310,18.99104,2259.0,2258.9,4.42693346]
[1750585950615,18.99104,2259.0,2258.8,4.42703487]
[1750585951025,21.14853113,2259.0,2258.9,4.42693346]
[1750585952327,12.15749113,2259.0,2258.9,4.42693346]
[1750585952526,19.76049113,2259.0,2258.9,4.42693346]
[1750585953039,19.76049113,2259.0,2258.8,4.42706739]
[1750585953219,11.38804,2258.9,2258.7,4.42722466]
[1750585953551,0.7691,2258.7,2258.6,4.42739583]
[1750585954909,7.602,2258.8,2258.7,4.42732545]
[1750585958843,2.15749113,2259.0,2258.8,5.20762944]
[1750585959141,9.694,2258.9,2258.8,4.42712944]
[1750585959909,2.092,2258.9,2258.8,4.42712944]
[1750585960110,9.694,2258.9,2258.8,4.42712944]
[1750585960738,11.71735585,2258.9,2258.8,4.42712944]
[1750585961440,24.71872617,2258.9,2258.3,5.19243346]
[1750585961645,23.90339585,2258.9,2258.7,4.42715346]
[1750585963306,23.90339585,2258.9,2258.7,4.42724327]
[1750585964060,10.0,2258.8,2258.4,4.42783037]
[1750585964212,11.38804,2258.6,2258.5,4.42759339]
[1750585964407,9.692,2258.6,2257.9,4.42873159]
[1750585964638,9.692,2258.6,2258.5,4.42771751]
[1750585965062,10.0,2258.5,2258.4,4.42791356]
[1750585965349,21.38804,2258.5,2258.4,4.42791356]
[1750585965642,22.17504,2258.5,2258.3,4.42803636]
[1750585965845,7.6,2258.4,2258.1,4.42841286]
[1750585966019,11.38804,2258.2,2258.1,4.42841286]
[1750585966346,18.98704,2258.2,2258.1,4.42841286]
[1750585966844,0.787,2258.1,2257.7,4.42924927]
[1750585967145,11.38804,2257.8,2257.7,4.42923555]
[1750585967450,18.98704,2257.8,2257.7,4.42923555]
[1750585967747,10.787,2257.7,2257.3,4.42997609]
[1750585968045,21.38804,2257.4,2257.3,4.43007132]
[1750585968247,21.38804,2257.4,2256.9,5.22723653]
[1750585968248,31.07904,2257.4,2256.9,0.7964]
[1750585968414,33.08344856,2257.4,2257.1,4.43044416]
[1750585968747,2.00170733,2257.3,2257.2,4.4300757]
[1750585969047,2.00170733,2257.3,2256.6,4.43142896]
[1750585969048,5.21746642,2257.1,2256.0,0.7964]
[1750585969249,11.38804,2256.4,2256.0,0.7964]
[1750585969545,11.38804,2256.4,2256.3,4.43203474]
[1750585969764,21.07804,2256.4,2256.2,4.43206646]
[1750585969945,21.07804,2256.4,2256.3,4.43203474]
[1750585970150,36.24986417,2256.4,2255.6,0.2230228]
[1750585970453,11.38804,2255.7,2255.6,4.65629252]
[1750585970653,21.07904,2255.7,2255.6,4.65629252]
[1750585970815,31.07904,2255.7,2255.6,0.2230228]
[1750585971031,13.25967659,2255.7,2255.6,4.65643297]
[1750585971218,11.56463659,2255.7,2255.6,6.36513675]
[1750585971569,22.95267659,2255.7,2255.6,4.65643297]
[1750585972265,33.78327659,2255.7,2255.6,4.65643297]
[1750585972459,33.78327659,2255.7,2255.6,0.2230228]
[1750585972669,5.26523248,2255.5,2254.1,0.7997]
[1750585972834,8.91844594,2254.6,2254.1,1.17003965]
[1750585973025,8.91844594,2254.6,2254.1,0.37033965]
[1750585973026,8.91844594,2254.3,2254.1,0.37033965]
[1750585973227,8.91844594,2254.3,2253.4,2.0407751]
[1750585973228,0.8316,2254.1,2253.4,2.0407751]
[1750585973423,0.8316,2254.1,2252.9,0.7997]
[1750585973424,9.695,2254.0,2253.9,4.43675407]
[1750585973738,12.094,2254.0,2253.9,4.43675407]
[1750585974034,10.644,2254.2,2254.1,4.4363604]
[1750585974242,20.339,2254.2,2254.1,4.4363604]
[1750585974857,20.339,2254.2,2254.0,4.43654014]
[1750585974858,10.0,2254.1,2252.1,4.44019578]
[1750585975168,18.91844594,2253.7,2252.4,4.43958999]
[1750585975323,8.91844594,2253.7,2253.6,4.43734469]
[1750585975520,18.91844594,2253.9,2253.8,4.43695092]
[1750585975724,32.37050474,2253.9,2253.8,4.43695092]
[1750585975954,10.0,2253.8,2252.1,2.095]
[1750585976155,8.91844594,2253.6,2253.5,4.4375416]
[1750585976388,18.61744594,2253.6,2253.5,4.4375416]
[1750585976691,18.61744594,2253.6,2252.9,4.43855482]
[1750585976885,20.63669934,2253.6,2253.3,4.43777038]
[1750585977172,8.91844594,2253.6,2253.5,4.4375416]
[1750585977385,18.91844594,2253.6,2253.5,4.4375416]
[1750585977537,1.5750881,2253.8,2253.5,4.4375416]
[1750585977538,1.5750881,2253.8,2253.7,4.4371478]
[1750585977744,11.2740881,2253.8,2253.7,4.4371478]
[1750585978147,20.19253404,2253.8,2253.7,4.4371478]
[1750585978386,10.0,2253.7,2253.3,4.43776583]
[1750585978532,18.91844594,2253.4,2253.3,4.43779795]
[1750585978737,18.91844594,2253.4,2253.2,4.43804756]
[1750585978738,10.0,2253.3,2253.2,4.43804756]
[1750585978932,12.095,2253.3,2253.1,4.43827608]
[1750585979172,7.604,2253.2,2253.0,4.43842401]
[1750585979375,9.16542157,2253.2,2253.1,4.43832941]
[1750585979579,9.16542157,2253.2,2252.5,0.7832]
[1750585979580,1.57634706,2253.1,2252.5,0.7832]
[1750585979868,8.91844594,2252.9,2252.8,4.43892045]
[1750585980040,8.91844594,2252.9,2252.3,4.43988757]
[1750585980243,9.702,2252.8,2252.7,4.4391175]
[1750585980657,11.31013916,2252.8,2252.7,4.4391175]
[1750585980862,21.31013916,2252.8,2252.7,4.4391175]
[1750585981237,21.67975158,2252.8,2252.7,4.4391175]
[1750585981437,4.07275158,2252.8,2252.7,4.4391175]
[1750585981646,11.67975158,2252.8,2252.7,5.32695808]
[1750585981860,11.67975158,2252.8,2252.7,4.4391175]
[1750585982372,21.67975158,2252.8,2252.6,4.43929237]
[1750585982539,10.0,2252.7,2252.6,4.43929237]
[1750585982739,11.66470855,2252.7,2252.6,4.43929237]
[1750585983231,11.37870855,2252.7,2252.6,4.43929237]
[1750585983470,1.66470855,2252.7,2252.6,4.43929237]
[1750585983766,11.38170855,2252.7,2252.6,5.3271716]
[1750585983976,11.38170855,2252.7,2252.6,4.43929237]
[1750585984141,21.75132097,2252.7,2252.1,0.7832]
[1750585984334,8.91844594,2252.5,2252.4,4.43959823]
[1750585984539,11.16681242,2252.7,2252.6,4.43931456]
[1750585984735,10.0,2252.6,2252.5,4.43933425]
[1750585984967,12.37813826,2252.7,2252.6,4.43931456]
[1750585985182,19.731,2252.7,2252.6,4.43931456]
[1750585985340,10.0,2252.6,2252.5,4.43951165]
[1750585985542,8.91844594,2252.6,2252.2,4.43998175]
[1750585985739,8.91844594,2252.3,2252.2,4.44010301]
[1750585985977,0.4489025,2252.6,2252.2,4.44010301]
[1750585985978,8.91844594,2252.6,2252.4,4.43970875]
[1750585986187,2.097,2252.3,2252.2,4.44010301]
[1750585986338,10.0,2252.6,2252.5,4.43951165]
[1750585986538,19.769,2252.6,2252.5,4.43951165]
[1750585986880,7.673,2252.6,2252.5,4.43936592]
[1750585987382,9.77,2252.6,2252.5,4.43951165]
[1750585987683,10.652,2253.1,2252.5,4.43951165]
[1750585987684,10.652,2253.1,2253.0,4.4385264]
[1750585987888,30.424,2253.1,2253.0,4.4385264]
[1750585988172,10.0,2253.0,2252.6,4.43917753]
[1750585988339,17.678,2252.9,2252.8,4.43891819]
[1750585989280,10.0,2252.8,2252.7,4.4391175]
[1750585989489,8.91844594,2253.5,2253.4,4.43773852]
[1750585989800,8.91844594,2253.5,2253.3,4.43785071]
[1750585989801,18.73844594,2253.5,2253.3,4.43785071]
[1750585990071,9.821,2253.4,2253.3,4.43793547]
[1750585990665,10.0,2253.3,2252.8,4.43892045]
[1750585990973,7.685,2253.2,2253.0,4.43847577]
[1750585991179,10.0,2253.1,2253.0,4.43833557]
[1750585992071,10.0,2253.1,2252.9,4.43865491]
[1750585992380,7.692,2253.0,2252.9,4.43865491]
[1750585992678,10.0,2252.9,2252.5,4.4394213]
[1750585992864,18.91844594,2252.8,2252.7,4.43899174]
[1750585993180,18.91844594,2252.8,2252.6,4.43931456]
[1750585993181,10.0,2252.7,2252.6,4.43931456]
[1750585993566,10.0,2252.7,2252.5,4.43940629]
[1750585993898,7.684,2252.6,2252.5,4.43940629]
[1750585994068,7.684,2252.6,2252.4,4.43958605]
[1750585994268,8.91844594,2252.8,2252.5,4.43951165]
[1750585994574,19.818,2252.7,2252.2,4.44007951]
[1750585994981,19.818,2252.7,2252.6,4.43931456]
[1750585995294,19.816,2252.7,2252.0,0.8113]
[1750585995606,10.8205,2252.4,2252.0,4.44039852]
[1750585995807,7.677,2252.3,2252.0,4.44039852]
[1750585995955,7.677,2252.3,2252.1,4.44027549]
[1750585995956,2.137,2252.2,2252.1,4.44027549]
[1750585996479,2.137,2252.2,2251.9,4.79418234]
[1750585996480,12.137,2252.2,2251.9,4.79418234]
[1750585996796,10.8205,2252.4,2252.3,4.43990587]
[1750585996958,19.819,2252.4,2252.3,4.43990587]
[1750585997388,19.819,2252.4,2251.9,1.15865293]
[1750585997578,21.70817884,2252.4,2251.9,0.35365293]
[1750585997760,11.88917884,2252.4,2251.9,0.35365293]
[1750585997964,10.0,2252.2,2252.0,4.44049733]
[1750585998196,18.05061242,2252.1,2252.0,4.44041988]
[1750585998569,10.36961242,2252.1,2252.0,4.44041988]
[1750585998894,20.18961242,2252.1,2252.0,4.44041988]
[1750585999101,10.36961242,2252.1,2252.0,4.44041988]
[1750585999390,20.18661242,2252.1,2252.0,4.44041988]
[1750585999690,2.50661242,2252.1,2252.0,5.4082951]
[1750585999860,10.18761242,2252.1,2252.0,4.44041988]
[1750586000681,8.04961242,2252.1,2252.0,4.44041988]
[1750586001301,0.36961242,2252.1,2252.0,4.44041988]
[1750586001511,0.36961242,2252.1,2252.0,4.48481762]
[1750586001711,0.36961242,2252.1,2252.0,4.44041988]
[1750586002065,0.36961242,2252.1,2252.0,5.99439224]
[1750586002325,0.36961242,2252.1,2252.0,6.03878985]
[1750586002515,0.36961242,2252.1,2252.0,5.99439224]
[1750586003213,0.36961242,2252.1,2252.0,4.44041988]
[1750586003379,8.04461242,2252.1,2252.0,4.44041988]
[1750586003582,10.19361242,2252.1,2252.0,4.44041988]
[1750586004308,10.19361242,2252.1,2251.9,0.35365293]
[1750586004530,10.7566,2252.0,2251.9,0.35365293]
[1750586004815,15.11307826,2252.0,2251.9,0.35365293]
[1750586004994,24.93707826,2252.0,2251.9,0.35365293]
[1750586005729,29.37757559,2252.0,2251.9,0.35365293]
[1750586006016,10.7566,2251.8,2251.7,0.1494071]
[1750586006221,32.17155009,2251.8,2251.7,0.1494071]
[1750586006398,24.31828255,2251.8,2251.7,4.59049605]
[1750586006582,20.19461242,2251.8,2251.7,0.1494071]
[1750586006972,29.11305836,2251.8,2251.7,0.1494071]
[1750586007172,29.86965836,2251.8,2251.7,0.1494071]
[1750586008081,34.31055009,2251.8,2251.7,0.1494071]
[1750586008417,33.74476606,2251.8,2251.7,0.1494071]
[1750586008877,15.00132012,2251.8,2251.7,0.1494071]
[1750586009076,29.87265836,2251.8,2251.7,0.1494071]
[1750586009316,34.31355009,2251.8,2251.7,0.1494071]
[1750586009484,29.87265836,2251.8,2251.7,0.1494071]
[1750586010016,29.87465836,2251.8,2251.7,0.1494071]
[1750586010724,13.26421242,2251.8,2251.7,0.1494071]
[1750586010925,23.17347826,2251.8,2251.7,0.1494071]
[1750586011288,11.12621242,2251.8,2251.7,4.59049605]
[1750586011492,10.95821242,2251.8,2251.7,4.59049605]
[1750586012337,10.20161242,2251.8,2251.7,4.59049605]
[1750586012997,10.20161242,2251.8,2251.7,0.1494071]
[1750586013179,10.20161242,2251.8,2251.7,4.59049605]
[1750586013380,12.11361826,2251.8,2251.7,0.1494071]
[1750586014298,17.35300999,2251.8,2251.7,0.1494071]
[1750586014483,12.91211826,2251.8,2251.7,0.1494071]
[1750586015189,17.35300999,2251.8,2251.7,1e-08]
[1750586015593,12.90111826,2251.8,2251.7,1e-08]
[1750586016310,3.08011826,2251.8,2251.7,1e-08]
[1750586016511,12.89911826,2251.8,2251.7,1e-08]
[1750586016713,3.08011826,2251.8,2251.7,1e-08]
[1750586016918,10.98611242,2251.8,2251.7,4.44108896]
[1750586017122,10.98611242,2251.8,2251.7,1e-08]
[1750586017616,15.42700415,2251.8,2251.7,1e-08]
[1750586017815,10.98611242,2251.8,2251.7,1e-08]
[1750586018583,20.98611242,2251.8,2251.7,1e-08]
[1750586018926,24.4206254,2251.8,2251.7,1e-08]
[1750586019618,10.0,2251.7,2251.4,4.44166853]
[1750586019928,26.97105836,2251.6,2251.5,4.44148345]
[1750586020132,26.82105836,2251.6,2251.4,4.44159102]
[1750586020300,0.36961242,2251.5,2251.2,4.44200298]
[1750586020636,7.681,2251.4,2251.3,4.44171119]
[1750586020838,7.681,2251.4,2250.9,5.20979118]
[1750586020839,0.8147,2251.1,2250.1,0.7849]
[1750586021152,10.0,2250.9,2250.6,4.4431247]
[1750586021431,10.0,2250.9,2250.5,4.44337772]
[1750586021432,10.36961242,2250.9,2250.5,4.44337772]
[1750586021812,12.50393024,2250.9,2250.3,4.44367541]
[1750586022148,16.94659761,2250.9,2250.1,5.22908176]
[1750586022364,4.44602525,2249.2,2248.8,0.2230228]
[1750586022660,4.44602525,2249.2,2245.5,0.22625701]
[1750586022661,0.5,2248.5,2245.5,0.22625701]
[1750586022800,4.45216152,2246.1,2246.0,0.00413216]
[1750586023001,40.5,2245.8,2241.9,5.64793238]
[1750586023222,40.5,2245.8,2243.9,0.00413602]
[1750586023223,10.672,2245.7,2243.9,0.00413602]
[1750586023503,8.91844594,2244.6,2244.0,0.37200651]
[1750586023701,31.466,2244.5,2244.0,0.37200651]
[1750586023911,18.91844594,2244.3,2244.0,0.37200651]
[1750586024359,18.91844594,2244.3,2242.6,4.45903947]
[1750586024360,8.91844594,2243.8,2243.6,0.0684785]
[1750586024644,0.8147,2243.8,2242.2,4.45985842]
[1750586024850,19.74538907,2243.9,2241.9,1.18762052]
[1750586025058,11.30538907,2242.9,2241.9,1.18762052]
[1750586025201,4.45719816,2243.6,2239.4,0.7849]
[1750586025202,0.8147,2241.8,2239.4,0.7849]
[1750586025396,11.30538907,2241.5,2240.2,0.7849]
[1750586025612,9.382,2241.4,2240.2,0.7849]
[1750586025828,11.30538907,2241.5,2239.7,4.46469893]
[1750586025829,1.34373308,2242.2,2239.8,4.4646465]
[1750586026033,0.8147,2242.6,2240.4,4.4633353]
[1750586026034,11.30538907,2242.0,2240.4,4.4633353]
[1750586026214,10.04461242,2241.9,2240.4,4.46337941]
[1750586026412,11.30538907,2241.6,2240.6,4.46305911]
[1750586026612,13.43561242,2241.5,2240.7,4.94546681]
[1750586026813,0.04917828,2241.4,2240.9,0.7849]
[1750586027056,0.04917828,2241.4,2240.5,0.36295958]
[1750586027057,11.35456735,2241.4,2241.0,0.04461333]
[1750586027212,20.08061242,2241.3,2240.6,0.04461773]
[1750586027456,0.36961242,2241.2,2240.5,0.36295958]
[1750586027733,11.30538907,2240.7,2240.5,0.36295958]
[1750586027935,0.36961242,2241.2,2240.5,0.36295958]
[1750586028343,0.30956696,2241.2,2241.1,4.4620945]
[1750586028503,3.731,2242.5,2241.1,0.04461866]
[1750586028708,0.36961242,2242.4,2241.1,0.04461866]
[1750586029023,0.36961242,2242.4,2240.9,0.8037]
[1750586029024,0.45195344,2243.5,2241.5,4.46129823]
[1750586029207,0.30104837,2243.4,2242.0,10.0]
[1750586029536,0.30104837,2243.4,2243.3,5.26091853]
[1750586029752,0.23253497,2244.8,2243.9,4.45636487]
[1750586029904,3.947,2245.0,2243.3,0.8032]
[1750586030100,3.947,2245.0,2243.7,0.8032]
[1750586030306,0.23236145,2244.9,2244.0,10.0]
[1750586030545,3.947,2245.0,2244.1,0.04454469]
[1750586030700,10.693,2245.4,2243.9,4.45652658]
[1750586031041,0.23236145,2245.9,2245.0,4.45426253]
[1750586031198,10.93136145,2246.2,2244.3,0.8032]
[1750586031405,10.93136145,2246.2,2244.6,4.45497661]
[1750586031598,0.23236145,2246.3,2244.5,0.26763855]
[1750586031903,0.23236145,2246.1,2245.3,4.45364176]
[1750586032462,0.3035974,2246.0,2245.3,0.8032]
[1750586032647,0.3035974,2246.0,2245.4,0.04451238]
[1750586032830,0.3035974,2246.0,2245.9,4.45255799]
[1750586033003,0.3035974,2246.0,2245.9,5.34309152]
[1750586033201,0.3035974,2246.0,2245.9,15.34309152]
[1750586033627,10.699,2246.8,2245.9,15.34309152]
[1750586033628,0.23236145,2247.0,2246.2,4.45181174]
[1750586033828,0.23236145,2247.0,2245.9,0.89053353]
[1750586034042,0.23236145,2247.0,2245.9,10.0]
[1750586034342,0.23236145,2247.0,2245.8,4.45275625]
[1750586034343,0.23236145,2247.0,2246.0,0.04450127]
[1750586034706,0.23236145,2247.4,2246.1,4.8238011]
[1750586034906,0.2482929,2248.6,2246.9,4.45041653]
[1750586034907,0.23236145,2247.5,2246.9,4.45041653]
[1750586035142,0.23236145,2247.2,2247.0,0.37150983]
[1750586036410,10.6501976,2247.2,2247.0,0.37150983]
[1750586036724,10.6501976,2247.2,2245.7,0.8032]
[1750586036925,0.23236145,2246.6,2246.0,4.45216939]
[1750586037100,14.86797894,2247.2,2246.2,4.45178521]
[1750586037101,0.23236145,2246.8,2246.2,4.45178521]
[1750586037304,0.23236145,2246.8,2246.2,4.45179636]
[1750586037533,0.23236145,2246.8,2246.4,4.45151677]
[1750586037729,0.23236145,2246.6,2246.5,0.04450662]
[1750586037950,10.0,2247.2,2245.8,0.37170834]
[1750586037951,0.23236145,2246.4,2245.8,0.37170834]
[1750586038135,0.23236145,2246.4,2245.9,4.45238136]
[1750586038441,0.23236145,2246.4,2246.3,4.45176512]
[1750586038629,0.23236145,2246.4,2245.8,0.37170834]
[1750586038630,10.57136145,2247.1,2246.6,4.45111255]
[1750586038864,0.23236145,2247.6,2246.8,0.55]
[1750586039077,0.23236145,2247.0,2246.6,0.44511126]
[1750586039373,0.23236145,2246.8,2245.9,0.55]
[1750586039576,0.23236145,2246.8,2246.3,4.45169712]
[1750586039950,0.23236145,2246.4,2245.8,0.37170834]
[1750586040145,0.23236145,2246.4,2245.9,4.45242057]
[1750586040347,0.23236145,2246.4,2245.9,4.45237113]
[1750586040575,0.23236145,2246.1,2245.8,0.37170834]
[1750586040775,0.23236145,2247.1,2245.9,0.04451989]
[1750586040973,0.779,2247.8,2245.8,10.37170834]
[1750586040974,0.23236145,2246.8,2245.8,10.37170834]
[1750586041281,0.23236145,2246.4,2245.8,4.82440677]
[1750586041584,0.23236145,2246.4,2245.8,0.37170834]
[1750586041787,0.23236145,2246.6,2246.1,0.55]
[1750586042102,3.946,2247.3,2246.5,4.45136879]
[1750586042301,0.23236145,2247.1,2246.8,4.45065955]
[1750586042448,0.23236145,2247.2,2246.4,0.55]
[1750586042784,0.23236145,2246.7,2246.0,0.55]
[1750586042967,0.23236145,2246.7,2245.8,0.37170834]
[1750586042968,0.23236145,2246.7,2245.9,0.55]
[1750586043170,0.23236145,2246.5,2246.2,4.45177006]
[1750586043371,0.23236145,2246.5,2245.9,4.45255799]
[1750586043560,0.23236145,2246.5,2245.8,0.37170834]
[1750586043561,0.23236145,2247.0,2246.9,4.45057634]
[1750586044659,0.23236145,2247.7,2247.6,4.44919024]
[1750586044992,0.23236145,2247.9,2247.8,4.44879437]
[1750586045286,0.23236145,2247.5,2247.0,4.45037828]
[1750586045593,0.23236145,2247.8,2247.1,4.45018023]
[1750586045776,0.23236145,2247.7,2247.2,4.44995532]
[1750586045976,0.23236145,2247.7,2247.6,4.44919024]
[1750586046151,0.23236145,2247.7,2246.9,4.45039512]
[1750586046496,0.23236145,2247.5,2247.4,4.44958618]
[1750586046698,0.23236145,2247.5,2247.4,4.44956048]
[1750586046861,0.23236145,2247.5,2247.2,4.44986358]
[1750586047185,0.23236145,2247.5,2247.3,4.44973778]
[1750586047400,0.23236145,2247.0,2246.3,0.833]
[1750586047602,0.23236145,2247.9,2246.4,0.45097445]
[1750586047804,0.23236145,2247.9,2247.8,4.44879437]
[1750586047959,4.1932929,2248.6,2248.4,4.44744124]
[1750586048269,0.23236145,2248.0,2247.9,4.44840257]
[1750586048787,0.2482929,2248.6,2247.4,0.833]
[1750586048984,0.23236145,2248.1,2247.5,0.55]
[1750586049150,0.23236145,2248.3,2248.2,4.44800284]
[1750586049852,0.23236145,2248.1,2248.0,4.44645872]
[1750586050391,0.23236145,2248.1,2247.8,4.44872777]
[1750586050687,0.23236145,2247.8,2247.7,4.4489923]
[1750586050848,0.23236145,2247.8,2247.6,4.44899573]
[1750586051054,0.23236145,2247.8,2247.7,4.4489923]
[1750586052289,4.06836145,2248.2,2248.1,4.4482007]
[1750586053379,0.2482929,2248.6,2248.5,4.44740938]
[1750586053700,14.49065435,2248.6,2248.5,4.44740938]
[1750586053896,0.2482929,2248.6,2248.5,4.44740938]
[1750586054618,0.23236145,2248.5,2248.4,4.44760503]
[1750586054765,0.2482929,2248.6,2247.6,4.44919024]
[1750586054766,0.23236145,2248.1,2247.6,4.44919024]
[1750586055125,0.23236145,2247.8,2247.7,4.44894486]
[1750586055468,0.23236145,2247.2,2247.1,4.45018023]
[1750586055703,15.37375052,2247.4,2247.3,4.44978418]
[1750586055885,10.37736145,2247.4,2247.3,4.44978418]
[1750586056199,0.23236145,2247.2,2246.7,4.45097253]
[1750586056505,0.23236145,2246.9,2246.8,4.45077443]
[1750586056686,10.36936145,2247.4,2247.0,4.45022966]
[1750586056886,10.36936145,2247.4,2247.3,4.44978418]
[1750586057202,10.137,2247.4,2247.3,4.44978418]
[1750586057533,21.99538907,2247.9,2247.2,4.44994331]
[1750586057534,0.23236145,2247.7,2247.6,4.44919024]
[1750586057869,0.23236145,2247.7,2246.8,4.45077443]
[1750586058063,11.30538907,2248.1,2247.1,4.45018023]
[1750586058064,0.23236145,2247.2,2247.1,4.45018023]
[1750586058966,0.23236145,2247.2,2247.1,4.49467524]
[1750586059264,0.23236145,2247.4,2247.3,4.44978418]
[1750586059572,0.23236145,2247.4,2247.3,4.4942753]
[1750586059773,11.30538907,2248.3,2247.5,4.4493882]
[1750586059774,0.23236145,2247.6,2247.5,4.4493882]
[1750586060164,0.23236145,2247.6,2247.5,4.11537515]
[1750586060372,0.23236145,2247.6,2247.5,4.1598628]
[1750586060599,0.23236145,2247.6,2247.5,4.11537515]
[1750586061189,0.23236145,2247.9,2247.8,4.44879437]
[1750586061396,0.91495957,2248.6,2248.3,4.447805]
[1750586061397,1.14732102,2248.6,2248.3,4.447805]
[1750586061583,1.14732102,2248.6,2248.5,4.44740938]
[1750586062099,1.14732102,2248.6,2247.5,0.7676]
[1750586062100,0.23236145,2247.4,2247.3,4.44978418]
[1750586062302,0.23236145,2247.3,2247.2,4.4499822]
[1750586062526,0.23236145,2247.3,2247.1,4.4501424]
[1750586062671,0.23236145,2247.3,2247.2,4.4499822]
[1750586063303,0.23236145,2247.1,2247.0,4.45032599]
[1750586063806,0.23236145,2247.3,2247.0,4.45032599]
[1750586064008,0.23236145,2247.1,2246.1,4.45212042]
[1750586064322,0.23236145,2247.1,2246.0,14.51535929]
[1750586064323,0.23236145,2246.9,2246.8,4.45077443]
[1750586064812,0.23236145,2246.9,2246.7,4.45080898]
[1750586065044,0.23236145,2246.6,2246.5,4.45119975]
[1750586065521,0.23236145,2246.6,2246.5,4.49570651]
[1750586065673,0.23236145,2246.8,2246.7,4.45097253]
[1750586066472,0.23236145,2246.5,2245.8,4.45272578]
[1750586066677,10.0,2247.4,2246.1,4.45216152]
[1750586066678,0.23236145,2246.2,2246.1,4.45216152]
[1750586067103,10.24736145,2246.5,2246.4,4.45156695]
[1750586067306,0.23236145,2246.5,2246.4,4.45156695]
[1750586067694,0.23236145,2246.5,2246.0,4.45235975]
[1750586067901,0.23236145,2246.2,2246.1,4.45216152]
[1750586069119,10.21136145,2246.2,2246.1,4.45216152]
[1750586070252,0.23236145,2246.2,2246.1,4.45216152]
[1750586072252,0.23236145,2246.2,2245.5,4.89822234]
[1750586072542,10.0,2247.1,2246.1,4.45216152]
[1750586072543,11.30538907,2246.7,2246.1,4.45216152]
[1750586072759,15.12058916,2248.3,2247.8,0.7971]
[1750586072903,0.23236145,2248.3,2248.2,4.44800284]
[1750586073105,0.23236145,2248.3,2248.2,0.04446324]
[1750586073344,0.23236145,2248.3,2248.2,4.44800284]
[1750586074116,0.23236145,2248.5,2248.4,4.44760718]
[1750586074523,0.91495957,2248.6,2248.5,4.44740938]
[1750586075184,4.44475987,2249.9,2248.5,4.44740938]
[1750586075185,0.23236145,2250.1,2250.0,4.44444444]
[1750586075469,10.075,2250.4,2250.3,4.44384099]
[1750586075617,0.23236145,2249.7,2249.6,5.2653347]
[1750586075940,10.075,2250.4,2249.7,4.44503711]
[1750586075941,0.23236145,2249.9,2249.7,4.44503711]
[1750586076151,0.23236145,2249.9,2249.6,0.86453706]
[1750586076152,0.23236145,2249.9,2249.8,0.04443768]
[1750586076506,0.23236145,2249.9,2249.8,4.48927722]
[1750586076755,0.23236145,2249.9,2249.8,4.44483954]
[1750586077403,10.30136145,2249.9,2249.8,4.44483954]
[1750586077940,0.23195224,2251.2,2249.8,4.44483954]